Cogmind - Beta 12 @@@ ROGUE MODE // 2023.06.13 @ 22:37:44 Player: zeramoth Result: Self-destructed Performance ------------- Evolutions (1) 500 Regions Visited (3) 600 Robots Destroyed (30) 150 Value Destroyed (621) 621 Prototype IDs (1) 20 Alien Tech Used (0) 0 Bonus (34) 34 TOTAL SCORE: 1925 Bonus ------- High Alert Combat Kills 34 Cogmind --------- Core Integrity 319/400 Matter 1/300 Energy 125/125 System Corruption 0% Temperature Cool (0) Movement Hovering (48) Location -9/Materials Parts ------- > --- POWER (1) -------- Light Ion Engine > --- PROPULSION (4) --- Improved Hover Unit Improved Hover Unit Improved Hover Unit Improved Hover Unit > --- UTILITY (2) ------ Small Storage Unit Transport Network Coupler > --- WEAPON (2) ------- High-powered Shotgun High-powered Shotgun > --- INVENTORY (8) ---- Ion Engine Heavy Ion Engine Light Treads Aluminum Leg Aluminum Leg Medium Storage Unit Light Assault Rifle Grenade Launcher Peak State ------------ > --- POWER ------------ Light Nuclear Core > --- PROPULSION ------- VTOL Module VTOL Module VTOL Module VTOL Module > --- UTILITY ---------- Small Storage Unit > --- WEAPON ----------- High-powered Shotgun High-powered Shotgun > --- INVENTORY -------- Ion Engine Light Ion Engine Light Treads Aluminum Leg Aluminum Leg Medium Storage Unit Light Assault Rifle Grenade Launcher [Rating: 18] Favorites ----------- Power Ion Engine Engine Ion Engine Power Core Light Nuclear Core Propulsion VTOL Module Treads Light Treads Leg Aluminum Leg Wheel Compact Wheel Hover Unit Improved Hover Unit Flight Unit VTOL Module Utility Small Storage Unit Storage Small Storage Unit Processor Transport Network Coupler Weapon EM Pulse Gun Energy Gun EM Pulse Gun Ballistic Gun High-powered Shotgun Launcher Rocket Launcher Build | -11 -10 -10 -9 ------- Run | Jun Mat Min Mat Slots Evolved 2 | . . . 2 Power . | . . . . Propulsion 2 | . . . 2 Utility . | . . . . Weapon . | . . . . Parts Attached 27 | . 3 5 19 Power 6 | . . 1 5 Engine 4 | . . 1 3 Core 2 | . . . 2 Reactor . | . . . . Propulsion 14 | . 2 2 10 Treads 2 | . . 2 . Leg 2 | . . . 2 Wheel 2 | . 2 . . Hover 4 | . . . 4 Flight 4 | . . . 4 Utility 3 | . 1 . 2 Device . | . . . . Storage 2 | . 1 . 1 Processor 1 | . . . 1 Hackware . | . . . . Protection . | . . . . Artifact . | . . . . Weapon 4 | . . 2 2 Energy Gun 1 | . . 1 . Energy Cannon . | . . . . Ballistic Gun 2 | . . . 2 Ballistic Cannon . | . . . . Launcher 1 | . . 1 . Special Weapon . | . . . . Impact Weapon . | . . . . Slashing Weapon . | . . . . Piercing Weapon . | . . . . Special Melee Weapon . | . . . . Unidentified Prototypes 1 | . . . 1 Parts Lost 4 | . . 4 . Power . | . . . . Propulsion 2 | . . 2 . Utility . | . . . . Weapon 2 | . . 2 . Highest Loss Streak 3 | . . 3 . To Critical Strikes . | . . . . Average Slot Usage (%) 92 | . 99 90 89 Engine 11 | . 14 14 4 Core 2 | . . . 6 Treads 7 | . . 19 . Wheel 10 | . 27 6 . Hover 2 | . . . 6 Flight 11 | . . . 35 Storage 22 | . 27 28 11 Energy Gun 12 | . 28 8 . Ballistic Gun 6 | . . . 20 Launcher 4 | . . 11 . Naked Turns . | . . . . Heaviest Build 35 | 14 34 35 35 Greatest Support 40 | 20 26 40 40 Greatest Overweight (x) 2 | . 1 2 1 Average Overweight (x) . | . . . . Largest Inventory Capacity 15 | 8 15 15 15 Average Capacity 12 | 8 14 15 8 Most Carried 13 | 6 13 13 12 Average Carried 9 | 6 9 11 8 Final Capacity 15 | 8 15 15 8 Final Carried 13 | 6 13 11 8 Class Distribution -------------------- 73% | Mutant 26% | Sprinter Dominant Class ---------------- Mutant | -10/Materials Mutant | -10/Mines Sprinter | -9/Materials Resources | -11 -10 -10 -9 ----------- Run | Jun Mat Min Mat Matter Collected 565 | 200 30 50 285 Remotely . | . . . . Salvage Created 637 | . 131 138 368 Parts 52 | . 10 16 26 Haulers Intercepted 2 | . . . 2 Recyclers Shooed . | . . . . Parts Field Recycled . | . . . . Retrieved Matter . | . . . . Parts Self-Destructed . | . . . . Prevented . | . . . . Kills | -11 -10 -10 -9 ------- Run | Jun Mat Min Mat Combat Hostiles Destroyed 27 | . 6 9 12 Guns 20 | . 5 3 12 AOE 7 | . 1 6 . Classes Destroyed 5 | . 2 2 1 Hauler 2 | . . . 2 Watcher 1 | . 1 . . Swarmer 17 | . 6 5 6 Grunt 5 | . . 2 3 Sentry 5 | . . 2 3 Best Kill Streak 7 | . 6 3 7 Combat Bots Only 7 | . 6 3 7 Max Kills in Single Turn 2 | . 1 2 1 Gunslinging 1 | . . 1 . Exploded 2 | . 1 2 . Melee . | . . . . Uniques/NPCs Destroyed . | . . . . Combat | -11 -10 -10 -9 -------- Run | Jun Mat Min Mat Damage Taken 857 | . 133 349 375 Core 166 | . 34 51 81 Absorbed by Shields . | . . . . Core Remaining (%) 83 | 100 . 66 . Volleys Fired 60 | . 12 14 34 Largest 2 | . 2 2 2 Hottest 80 | . 80 80 50 Shots Fired 108 | . 24 16 68 Gun 96 | . 24 4 68 Cannon . | . . . . Launcher 12 | . . 12 . Special . | . . . . Kinetic 68 | . . . 68 Thermal . | . . . . Explosive 12 | . . 12 . Electromagnetic 28 | . 24 4 . Robot Hit Streak 13 | . 3 5 13 Robot Miss Streak 6 | . 4 2 6 Penetration Max . | . . . . Secondary Targets 2 | . 1 1 . Max Gunslinging Chain 1 | . 1 1 . Shots Hit Robots 70 | . 9 9 52 Core Hits 45 | . 7 15 23 Critical Kills . | . . . . Critical Parts Destroyed . | . . . . Critical Strikes . | . . . . Melee Attacks . | . . . . Impact . | . . . . Slashing . | . . . . Piercing . | . . . . Sneak Attacks . | . . . . Combat Hostiles . | . . . . Follow-up Attacks . | . . . . Damage Inflicted 1528 | . 158 476 894 Guns 1041 | . 110 37 894 Cannons . | . . . . Explosions 487 | . 48 439 . Melee . | . . . . Ramming . | . . . . Kinetic 894 | . . . 894 Thermal 48 | . 48 . . Explosive 439 | . . 439 . Electromagnetic 147 | . 110 37 . Impact . | . . . . Slashing . | . . . . Piercing . | . . . . Highest Corruption . | . . . . Average Corruption . | . . . . Corruption Purged . | . . . . Corruption Blocked . | . . . . Overload Shots . | . . . . Overflow Damage . | . . . . Projectiles . | . . . . Explosions . | . . . . Melee . | . . . . Knockbacks . | . . . . Impact . | . . . . Kinetic . | . . . . Secondary . | . . . . Self-Inflicted Damage 95 | . . 95 . Shots 6 | . . 6 . Rammed . | . . . . Targets Rammed . | . . . . Kicked . | . . . . Crushed . | . . . . Highest Temperature 90 | . 90 36 26 Average Temperature 22 | . 43 12 11 Received Heat Transfer 189 | . . 81 108 Siege Activations . | . . . . Robots Corrupted . | . . . . Combat Hostiles . | . . . . Parts Fried . | . . . . Impact Corruptions . | . . . . Robots Melted . | . . . . Combat Hostiles . | . . . . Parts Melted . | . . . . Heat Transferred 100 | . 100 . . Parts Sabotaged . | . . . . Parts Stolen . | . . . . Parts Stripped . | . . . . Power Chain Reactions 1 | . 1 . . Missiles Intercepted . | . . . . Alert | -11 -10 -10 -9 ------- Run | Jun Mat Min Mat Peak Influence 562 | . 234 344 562 Initial 133 | . . 91 133 Average 273 | . 156 280 384 Maximum Alert Level 2 | . 1 1 2 Low Security (%) 34 | 100 64 17 21 Level 1 44 | . 35 82 12 Level 2 21 | . . . 66 Level 3 . | . . . . Level 4 . | . . . . Level 5 . | . . . . High Security . | . . . . Max Security . | . . . . Squads Dispatched 1 | . . . 1 Investigation . | . . . . Extermination . | . . . . Reinforcement 1 | . . . 1 Assault . | . . . . Garrison . | . . . . Intercept . | . . . . Searches Triggered . | . . . . Construction Impeded . | . . . . Haulers Reinforced . | . . . . Active Scanning Responses . | . . . . Cargo Convoy Interrupts . | . . . . Stealth | -11 -10 -10 -9 --------- Run | Jun Mat Min Mat Distress Signals 3 | . 2 . 1 Communications Jammed . | . . . . Distress Signals . | . . . . Times Spotted 41 | . 10 8 23 Peak Tracking Total 6 | . 5 3 6 Tactical Retreats 3 | . . . 3 Traps | -11 -10 -10 -9 ------- Run | Jun Mat Min Mat Traps Triggered . | . . . . Indirectly . | . . . . Trap Hack Attempts . | . . . . Triggered . | . . . . Disarmed . | . . . . Reprogrammed . | . . . . Reused . | . . . . Traps Extracted . | . . . . Installed . | . . . . Triggered . | . . . . Machines | -11 -10 -10 -9 ---------- Run | Jun Mat Min Mat Machines Disabled 3 | . 1 2 . Max in Single Turn 2 | . 1 2 . Machines Repaired . | . . . . Machines Sabotaged . | . . . . Overloaded Fab Kills . | . . . . Hacking | -11 -10 -10 -9 --------- Run | Jun Mat Min Mat Machines Accessed 7 | . 3 . 4 Terminals 7 | . 3 . 4 Fabricators . | . . . . Repair Stations . | . . . . Recycling Units . | . . . . Scanalyzers . | . . . . Garrison Access . | . . . . Total Hacks 21 | . 7 . 14 Successful 13 | . 5 . 8 Failed 8 | . 2 . 6 Catastrophic 4 | . 1 . 3 Database Lockouts . | . . . . Manual 20 | . 8 . 12 Terminals 21 | . 7 . 14 Fabricators . | . . . . Repair Stations . | . . . . Recycling Units . | . . . . Scanalyzers . | . . . . Garrison Access . | . . . . Terminal Hacks 10 | . 4 . 6 Robot Analysis 2 | . 2 . . Branch Access Points 1 | . 1 . . Terminal Index 1 | . . . 1 Recycling Unit Index 1 | . . . 1 Unreport Threat 1 | . . . 1 Transport Status 1 | . . . 1 Hauler Manifests 2 | . 1 . 1 Zone Layout 1 | . . . 1 Fabricator Hacks . | . . . . Repair Station Hacks . | . . . . Recycling Unit Hacks . | . . . . Scanalyzer . | . . . . Garrison Access Hacks . | . . . . Unauthorized Hacks 3 | . 1 . 2 Terminals 3 | . 1 . 2 Track 1 | . . . 1 Botnet 1 | . 1 . . Operators 1 | . . . 1 Fabricators . | . . . . Repair Stations . | . . . . Recycling Units . | . . . . Scanalyzers . | . . . . Garrison Access . | . . . . Data Cores Recovered . | . . . . Used . | . . . . Hacking Detections 3 | . 1 . 2 Full Trace Events . | . . . . Feedback Events . | . . . . Feedback Blocked . | . . . . Robot Schematics Acquired . | . . . . Robots Built . | . . . . Authchips . | . . . . Time . | . . . . Total Robot Build Rating . | . . . . Part Schematics Acquired . | . . . . Parts Built . | . . . . Authchips . | . . . . Time . | . . . . Total Part Build Rating . | . . . . Parts Repaired . | . . . . Time . | . . . . Parts Recycled . | . . . . Recycled Matter . | . . . . Retrieved Matter . | . . . . Retrieved Components . | . . . . Parts Scanalyzed . | . . . . Part Schematics Acquired . | . . . . Parts Damaged . | . . . . Bothacking | -11 -10 -10 -9 ------------ Run | Jun Mat Min Mat Used RIF Installer . | . . . . Robots Hacked . | . . . . Non-combat . | . . . . Combat . | . . . . Robot Hacks Applied . | . . . . Relay Couplers Released . | . . . . Fabnet Peak Effective % . | . . . . Robots Rewired . | . . . . Allies Hacked . | . . . . Hacks Repelled . | . . . . Allies | -11 -10 -10 -9 -------- Run | Jun Mat Min Mat Total Allies . | . . . . Largest Group . | . . . . Highest-Rated Group . | . . . . Highest-Rated Ally . | . . . . Total Orders . | . . . . Ally Attacks . | . . . . Total Damage . | . . . . Kills . | . . . . Allies Corrupted . | . . . . Allies Melted . | . . . . Intel | -11 -10 -10 -9 ------- Run | Jun Mat Min Mat Robot Analysis Total 2 | . 2 . . Derelict Logs Recovered 1 | . . 1 . Drone Launches . | . . . . Drone Recoveries . | . . . . Exploration | -11 -10 -10 -9 ------------- Run | Jun Mat Min Mat Turns Passed 1156 | 5 373 399 379 Spaces Moved 1018 | 5 301 249 463 Core . | . . . . Treads 180 | . . 174 6 Legs 11 | 5 6 . . Wheels 370 | . 295 75 . Hover 69 | . . . 69 Flight 388 | . . . 388 Fastest Speed 26 | 120 105 105 26 Average Speed 81 | 120 105 146 31 Slowest Speed 160 | 120 120 160 160 Overloaded Moves . | . . . . Propulsion Burnouts . | . . . . Robots Hopped 10 | . . . 10 Cave-ins Triggered . | . . . . Exploration Rate (%) 42 | 2 64 58 45 Regions Visited 3 Branch Regions 1 Pre-discovered Areas . | . . . . Known Exits Taken 1 | . 1 . . Unknown Exits Taken 2 | 1 . 1 . Scrap Searched 1 | . . 1 . Spaces Dug . | . . . . Terrain Destroyed 108 | . 3 105 . Melee . | . . . . Projectile . | . . . . AOE 108 | . 3 105 . Terrain Rammed . | . . . . Walls Destroyed . | . . . . Machines Disabled . | . . . . Actions | -11 -10 -10 -9 --------- Run | Jun Mat Min Mat Total 1223 | 4 331 268 620 Wait 108 | . 9 . 99 Move 995 | 4 300 248 443 Hop 10 | . . . 10 Pick Up 8 | . 7 1 . Fast Attach 11 | . 1 . 10 Attach 10 | . . 4 6 Detach 4 | . . . 4 Swap 6 | . 2 1 3 Drop 11 | . . . 11 Fire 60 | . 12 14 34 Melee . | . . . . Ram . | . . . . Kick . | . . . . Crush . | . . . . Escape Stasis . | . . . . Rewire . | . . . . Trap . | . . . . Miscellaneous . | . . . . Route ------- -11/Junkyard -10/Materials (discovered 3 exits: *Mat x2 / *Min) -10/Mines (discovered 2 exits: *Mat x2) -9/Materials (discovered 2 exits: [*Mat x2]) History --------- Turn | Location | Event 1 | -11/Junkyard | Discovered new exit (range 2) 6 | -11/Junkyard | Entered Materials 158 | -10/Materials | Discovered new exit (range 15) 278 | -10/Materials | Discovered new exit (range 5) 304 | -10/Materials | Build established: Mutant 343 | -10/Materials | Identified exit to Mines 379 | -10/Materials | Entered Mines 408 | -10/Mines | Met a Derelict bent on vengeance 425 | -10/Mines | Discovered new exit (range 4) 426 | -10/Mines | Learned Materials emergency access door positions 472 | -10/Mines | Lost 3 parts (1n2w) 751 | -10/Mines | Discovered new exit (range 8) 778 | -10/Mines | Entered Materials 778 | -9/Materials | Evolved 2 slots: Propulsion x2 910 | -9/Materials | Discovered new exit (range 16) 922 | -9/Materials | Destroyed 7 combat bots 1036 | -9/Materials | Discovered new exit (range 16) 1086 | -9/Materials | Build established: Sprinter 1157 | -9/Materials | Self-destructed Last Messages --------------- 01077_ K-01 Serf collects debris. 01089_ A-02 Transporter destroyed. 01092_ Dropped VTOL Module. 01093_ Acquired Imp. Hover Unit. [Achievement: Universal Adapter] 01096_ Acquired Imp. Hover Unit. 01100_ Acquired 29 matter. 01101_ Dropped VTOL Module. 01102_ Acquired Imp. Hover Unit. 01111_ Dropped Sml. Storage Unit. 01120_ Connecting with Terminal... >>Index(Recycling Units) Found 2 recycling units. Downloaded coordinate data. 01120_ Connecting with Terminal... 01126_ O-16 Technician: "IFF HANDSHAKE FAILED. SECURING TERMINAL." 01141_ ALERT: Hostiles spotted, dispatching reinforcements to Terminal M011. 01149_ S-10 Pest destroyed. 01155_ K-01 Serf collects debris. Map ----- +----------------------------------------------------+ | | | | | | | | | | | | | | | | | | | | | ?????????????????????????????????????????######### | | ?????????????????????????????????????????# [ | | ?????????????????????????????????????????# ! "T" | | ?????????????????????????????????????????#! | | ?????????????????????????????????????????# | | ???????????????????????????###################+##+ | | ???????????????????????????# # | | ????????????????????######## # ##+###### | | ????????????????????# # / # !!! | | ????????????????????# """ # # # """ !! | | ????????????????????# """ # # # """ !! | | ????????????????????# """ # # # """= | | ????????????????????# """ / # # = = | | ????????????????????# % # + + """ == | | ?????????????????#######s#######+##### # """ | | ???????????????# !! *%@ #?????????# # """ | | ???????????????# ![ #?????????# # | | ???????????????# ! ????????# ######### | | ???????????????# k ???????# #?????### | | ???????????????# !!! ??????# #?????# | | ???????????????# !! ########### #?????# | | ???????????????# !! k *####### | | ?????????????? !* **** + | | ????????????? *####### | | ????????????? # ###### ##########??# ! | | ?????????????#####+### #????# ?????###T###### | | ?????????????????????#! !#????#??????# | | ?????????????????????##!!!!##???????????# | | ??????????????????????######????????????# o | | ????????????????????????????????????????# ###### | | ????????????????????????????????????????# #????? | | ????????????????????????????????????????# #????? | | ?????+??????????????????????????????????# #????? | | ????????????????????????????????????????# #????? | | ?????+??????????????????????????????????+ +????? | | ????????????????????????????????????????# #????? | | ????????????????????????????????????????# #????? | | ????????????????????????????????????????# #????? | | ????????????????????????????????????????# #????? | | ????????????????????????????????????????# ###??? | +----------------------------------------------------+ Best States ------------- Heat Dissipation 28 Energy Generation 14 Energy Capacity 250 Matter Stores 300 Matter Capacity 300 Sight Range 16 Terrain Scan Density 10 Evasion (%) 64 Recoil Reduction 2 Item Schematics ----------------- None Robot Schematics ------------------ None Fabricated ------------ Nothing Alien Tech Used ----------------- None Achievements -------------- Universal Adapter Challenges ------------ None Game ------ Seed AlphaMissileInterpreter Manual? 0 Play Time 00:18:03 Cumulative 38.4 hours Start 2023.06.09 @ 22:40:32 End 2023.06.13 @ 22:37:44 Sessions 5 Manual Loads 0 Difficulty Rogue Special Mode None Game No. 99 Rogue 98 Adventurer 0 Explorer 1 Win Type - Total 0 Types 0/0/0/0/0/0/0/0/0 Lore% 21 Gallery% 39 Achievement% 28 Wizard Run 0 Options --------- ASCII 1 Keyboard 1 Movement Vi Keybinds 0 Fullscreen 2 Font 36/X11Bold Map View 76x50 Tactical HUD 1 Map Filters NONE Filters NONE Steam 1 RUN: 599beb51-b726-47bb-84c7-05b4266cef5d